Cogmind - Beta 13 *** ADVENTURER MODE // 2024.03.12 @ 17:48:17 Player: Amao Result: Destroyed by G-47 Trooper with Particle Gun Performance ------------- Evolutions (0) 0 Regions Visited (1) 200 Robots Destroyed (22) 110 Value Destroyed (369) 369 Prototype IDs (2) 40 Alien Tech Used (0) 0 Bonus (0) 0 TOTAL SCORE: 719 Bonus ------- None Cogmind --------- Core Integrity 0/250 Matter 295/300 Energy 100/100 System Corruption 0% Temperature Cool (9) Movement Core (700) Ox13 Location -10/Materials Parts ------- > --- POWER (1) -------- (None) > --- PROPULSION (2) --- (None) > --- UTILITY (2) ------ High-capacity Storage Unit Utility Shielding > --- WEAPON (2) ------- (None) > --- INVENTORY (20) --- Medium Storage Unit High-capacity Matter Pod (51) High-capacity Matter Pod (0) Structural Scanner Improved Terrain Scanner Peak State ------------ > --- POWER ------------ Ion Engine > --- PROPULSION ------- Compact Wheel Compact Wheel > --- UTILITY ---------- Medium Storage Unit Structural Scanner > --- WEAPON ----------- Light Assault Rifle Mining Laser > --- INVENTORY -------- High-capacity Storage Unit High-capacity Matter Pod High-capacity Matter Pod High-capacity Matter Pod Improved Terrain Scanner Utility Shielding Mining Laser Mining Laser Mining Laser [Rating: 8] Favorites ----------- Power Ion Engine Engine Ion Engine Propulsion Compact Wheel Wheel Compact Wheel Utility Medium Storage Unit Device Structural Scanner Storage Medium Storage Unit Protection Utility Shielding Weapon Light Assault Rifle Energy Gun EM Pulse Gun Ballistic Gun Light Assault Rifle Special Weapon Mining Laser Build | -11 -10 ------- Run | Yrd Mat Slots Evolved . | . . Power . | . . Propulsion . | . . Utility . | . . Weapon . | . . Parts Attached 16 | 6 10 Power 1 | 1 . Engine 1 | 1 . Core . | . . Reactor . | . . Propulsion 4 | 2 2 Treads . | . . Leg . | . . Wheel 4 | 2 2 Hover . | . . Flight . | . . Utility 6 | 1 5 Device 1 | . 1 Storage 4 | 1 3 Processor . | . . Hackware . | . . Protection 1 | . 1 Artifact . | . . Weapon 5 | 2 3 Energy Gun 1 | 1 . Energy Cannon . | . . Ballistic Gun 2 | 1 1 Ballistic Cannon . | . . Launcher . | . . Special Weapon 2 | . 2 Impact Weapon . | . . Slashing Weapon . | . . Piercing Weapon . | . . Special Melee Weapon . | . . Unidentified Prototypes . | . . Parts Lost 7 | . 7 Power 1 | . 1 Propulsion 2 | . 2 Utility . | . . Weapon 4 | . 4 Highest Loss Streak 3 | . 3 To Critical Strikes . | . . Average Slot Usage (%) 74 | . 74 Engine 7 | . 7 Wheel 21 | . 21 Device 6 | . 6 Storage 16 | . 16 Protection 4 | . 4 Energy Gun 1 | . 1 Ballistic Gun 12 | . 12 Special Weapon 3 | . 3 Naked Turns . | . . Heaviest Build 58 | 13 58 Greatest Support 32 | 32 32 Greatest Overweight (x) 13 | . 13 Average Overweight (x) . | . . Largest Inventory Capacity 20 | 8 20 Average Capacity 13 | 7 15 Most Carried 10 | 5 10 Average Carried 5 | 1 7 Final Capacity 20 | 8 20 Final Carried 5 | 1 5 Class Distribution -------------------- 100% | Mutant Dominant Class ---------------- Mutant | -10/Materials Resources | -11 -10 ----------- Run | Yrd Mat Matter Collected 636 | 274 362 Remotely . | . . Salvage Created 621 | 218 403 Parts 45 | 13 32 Haulers Intercepted . | . . Recyclers Shooed 2 | 1 1 Parts Field Recycled . | . . Retrieved Matter . | . . Parts Self-Destructed . | . . Prevented . | . . Kills | -11 -10 ------- Run | Yrd Mat Combat Hostiles Destroyed 12 | . 12 Guns 8 | . 8 AOE 4 | . 4 Classes Destroyed 8 | 3 5 Worker 1 | 1 . Builder 1 | . 1 Tunneler 4 | 4 . Recycler 1 | 1 . Mechanic 1 | . 1 Watcher 2 | . 2 Swarmer 6 | . 6 Grunt 6 | . 6 Best Kill Streak 5 | 3 5 Combat Bots Only 4 | . 4 Max Kills in Single Turn 4 | 1 4 Gunslinging . | . . Exploded 3 | . 3 Melee . | . . Uniques/NPCs Destroyed . | . . Combat | -11 -10 -------- Run | Yrd Mat Hostile Shots Fired 103 | . 103 Missed 32 | . 32 Damage Taken 685 | 30 655 Core 254 | . 254 Absorbed by Shields . | . . Redirected to Shielding 8 | . 8 Ignored by Resistances 209 | 8 201 Regen/Repaired (Parts) 32 | . 32 Core Remaining (%) 100 | 100 . Volleys Fired 81 | 18 63 Largest 2 | 2 2 Hottest 120 | 60 120 Shots Fired 105 | 36 69 Gun 101 | 36 65 Cannon . | . . Launcher . | . . Special 4 | . 4 Kinetic 81 | 18 63 Thermal 4 | . 4 Explosive . | . . Electromagnetic 20 | 18 2 Robot Hit Streak 20 | 9 20 Robot Miss Streak 3 | 1 3 Penetration Max . | . . Secondary Targets . | . . Shots Hit Robots 80 | 26 54 Core Hits 39 | 9 30 Critical Kills . | . . Critical Parts Destroyed . | . . Critical Strikes 2 | 2 . Corrupt 2 | 2 . Melee Attacks . | . . Impact . | . . Slashing . | . . Piercing . | . . Sneak Attacks . | . . Combat Hostiles . | . . Follow-up Attacks . | . . Damage Inflicted 1014 | 345 669 Guns 729 | 304 425 Cannons . | . . Explosions 275 | 39 236 Melee . | . . Ramming 10 | 2 8 Kinetic 482 | 78 404 Thermal 133 | 39 94 Explosive . | . . Electromagnetic 389 | 226 163 Impact . | . . Slashing . | . . Piercing . | . . Highest Corruption . | . . Average Corruption . | . . Corruption Purged . | . . Corruption Blocked . | . . Overload Shots . | . . Overflow Damage 14 | 14 . Projectiles . | . . Explosions 14 | 14 . Melee . | . . Knockbacks . | . . Impact . | . . Kinetic . | . . Secondary . | . . Self-Inflicted Damage 91 | 30 61 Shots 3 | 1 2 Rammed 5 | 1 4 Targets Rammed 5 | 1 4 Kicked . | . . Crushed . | . . Highest Temperature 120 | 40 120 Average Temperature 29 | 21 36 Received Heat Transfer 336 | . 336 Siege Activations . | . . Robots Corrupted . | . . Combat Hostiles . | . . Parts Fried 1 | 1 . Impact Corruptions . | . . Robots Melted . | . . Combat Hostiles . | . . Parts Melted . | . . Heat Transferred 150 | 50 100 Parts Sabotaged . | . . Parts Stolen . | . . Parts Stripped . | . . Power Chain Reactions 2 | 1 1 Alert | -11 -10 ------- Run | Yrd Mat Peak Influence 283 | 30 283 Initial 16 | . 16 Average 113 | 13 136 Maximum Alert Level 1 | . 1 Low Security (%) 88 | 100 85 Level 1 11 | . 14 Level 2 . | . . Level 3 . | . . Level 4 . | . . Level 5 . | . . High Security . | . . Max Security . | . . Squads Dispatched 2 | . 2 Investigation 2 | . 2 Extermination . | . . Reinforcement . | . . Assault . | . . Garrison . | . . Intercept . | . . Searches Triggered . | . . Construction Impeded . | . . Haulers Reinforced . | . . Active Scanning Responses . | . . Cargo Convoy Interrupts . | . . Stealth | -11 -10 --------- Run | Yrd Mat Distress Signals 2 | . 2 Communications Jammed . | . . Distress Signals . | . . Times Spotted 19 | . 19 Peak Tracking Total 5 | . 5 Tactical Retreats 1 | . 1 Traps | -11 -10 ------- Run | Yrd Mat Traps Triggered . | . . Indirectly . | . . Trap Hack Attempts . | . . Triggered . | . . Disarmed . | . . Reprogrammed . | . . Reused . | . . Traps Extracted . | . . Installed . | . . Triggered . | . . Machines | -11 -10 ---------- Run | Yrd Mat Machines Disabled 2 | . 2 Max in Single Turn 1 | . 1 Machines Repaired . | . . Machines Dismantled . | . . Machines Sabotaged . | . . Overloaded Fab Kills . | . . Hacking | -11 -10 --------- Run | Yrd Mat Machines Accessed 4 | . 4 Terminals 2 | . 2 Fabricators . | . . Repair Stations 1 | . 1 Recycling Units 1 | . 1 Scanalyzers . | . . Garrison Access . | . . Total Hacks 13 | . 13 Successful 13 | . 13 Failed . | . . Catastrophic . | . . Database Lockouts . | . . Manual 1 | . 1 Terminals 4 | . 4 Fabricators . | . . Repair Stations 6 | . 6 Recycling Units 3 | . 3 Scanalyzers . | . . Garrison Access . | . . Terminal Hacks 4 | . 4 Record 1 | . 1 Prototype ID Bank 1 | . 1 Alert Level 1 | . 1 Assault Status 1 | . 1 Fabricator Hacks . | . . Repair Station Hacks 6 | . 6 Scan Component 3 | . 3 Repair 3 | . 3 Recycling Unit Hacks 3 | . 3 Recycle Component 3 | . 3 Scanalyzer . | . . Garrison Access Hacks . | . . Unauthorized Hacks . | . . Terminals . | . . Fabricators . | . . Repair Stations . | . . Recycling Units . | . . Scanalyzers . | . . Garrison Access . | . . Data Cores Recovered . | . . Used . | . . Hacking Detections 4 | . 4 Full Trace Events 3 | . 3 Feedback Events . | . . Feedback Blocked . | . . Robot Schematics Acquired . | . . Robots Built . | . . Authchips . | . . Time . | . . Total Robot Build Rating . | . . Part Schematics Acquired . | . . Parts Built . | . . Authchips . | . . Time . | . . Total Part Build Rating . | . . Parts Repaired 3 | . 3 Time 78 | . 78 Parts Recycled 3 | . 3 Recycled Matter . | . . Retrieved Matter . | . . Retrieved Components . | . . Parts Scanalyzed . | . . Part Schematics Acquired . | . . Parts Damaged . | . . Bothacking | -11 -10 ------------ Run | Yrd Mat Used RIF Installer . | . . Robots Hacked . | . . Non-combat . | . . Combat . | . . Robot Hacks Applied . | . . Relay Couplers Released . | . . Fabnet Peak Effective % . | . . Robots Rewired . | . . Allies Hacked . | . . Hacks Repelled . | . . Allies | -11 -10 -------- Run | Yrd Mat Total Allies . | . . Largest Group . | . . Highest-Rated Group . | . . Highest-Rated Ally . | . . Total Orders . | . . Ally Attacks . | . . Total Damage . | . . Kills . | . . Allies Corrupted . | . . Allies Melted . | . . Intel | -11 -10 ------- Run | Yrd Mat Robot Analysis Total . | . . Derelict Logs Recovered . | . . Drone Launches . | . . Drone Recoveries . | . . Exploration | -11 -10 ------------- Run | Yrd Mat Turns Passed 870 | 162 708 Spaces Moved 558 | 107 451 Core 33 | 23 10 Treads . | . . Legs . | . . Wheels 525 | 84 441 Hover . | . . Flight . | . . Fastest Speed 50 | 50 100 Average Speed 109 | 89 114 Slowest Speed 700 | 100 700 Overloaded Moves . | . . Propulsion Burnouts . | . . Robots Hopped . | . . Cave-ins Triggered . | . . Exploration Rate (%) 23 | 4 42 Regions Visited 1 Branch Regions . Pre-discovered Areas . | . . Known Exits Taken . | . . Unknown Exits Taken 1 | 1 . Scrap Searched . | . . Spaces Dug . | . . Terrain Destroyed 7 | 5 2 Melee . | . . Projectile . | . . AOE 7 | 5 2 Terrain Rammed . | . . Walls Destroyed . | . . Machines Disabled . | . . Actions | -11 -10 --------- Run | Yrd Mat Total 718 | 142 576 Wait 33 | . 33 Move 557 | 106 451 Hop . | . . Pick Up 23 | 9 14 Fast Attach . | . . Attach 12 | 6 6 Detach . | . . Swap 4 | . 4 Drop 3 | 2 1 Fire 81 | 18 63 Melee . | . . Ram 5 | 1 4 Kick . | . . Crush . | . . Escape Stasis . | . . Rewire . | . . Trap . | . . Miscellaneous . | . . Route ------- -11/Scrapyard -10/Materials (discovered 2 exits: [*Mat] / [*Min]) History --------- Turn | Location | Event 2 | -11/Scrapyard | Met Revision 17 4 | -11/Scrapyard | Discovered new exit (range 15) 163 | -11/Scrapyard | Entered Materials 331 | -10/Materials | Build established: Mutant 420 | -10/Materials | Discovered new exit (range 13) 587 | -10/Materials | Repaired Com. Wheel 587 | -10/Materials | Repaired Com. Wheel 613 | -10/Materials | Repaired Lgt. Assault Rifle 651 | -10/Materials | Core integrity fell below 50% 707 | -10/Materials | Discovered new exit (range 12) 858 | -10/Materials | Core integrity fell below 20% 871 | -10/Materials | Destroyed by G-47 Trooper with Particle Gun Last Messages --------------- EXIT=FOUND Connecting with Terminal... >>Alert(Check) Current Alert Level: Low Security Connecting with Recycling Unit... >>Recycle(Mining Laser) Accepting Mining Laser... >>Recycle(Mining Laser) Accepting Mining Laser... >>Recycle(Hcp. Matter Pod) Accepting Hcp. Matter Pod... Recycling unit begins recycling process. R-06 Scavenger inserts Ion Engine into recycling unit. R-06 Scavenger collects Flight Unit. R-06 Scavenger collects Lgt. Assault Rifle. Com. Wheel destroyed. G-34 Mercenary destroyed. Lgt. Assault Rifle destroyed. Mining Laser destroyed. Map ----- +----------------------------------------------------+ | # """"" ##???######### #########?????????? | | # ! = = ##???# """ # = # """ ##?????????? | | # ! ##???# """ # # "T" ##?????????? | | # " " ##???# """ + /* ############ | | # "R" ##???# # #[! # # # | | # """ ###### # # # # """ # | | #####+################# ######## # """ # | | ####### + """ # | | # # | | # # | | ####### ################ ######## | | ####### ################ ###+####+###?????? | | ####### ##????########### ## ##?????? | | #######+##????## [%= # ## #??????? | | ##! [ ######## * # ## """ """ #??????? | | ## = %######## "" # ## """ """ #??????? | | ## !*# #### """ # ## """ """ #??????? | | ##= + + """ + ## #??????? | | ## [ !=# #### """ # ## #??????? | | ## =%!# #### """ # ## #??????? | | ######+## #### # ############??????? | | #### # ##????????????????? | | T############ ########??????????? | | ############# #??????????? | | +######## ###????????## ! #??????????? | | #### ###????????##@ #??????????? | | ???????"" ##????????## #??????????? | | ???????? ##?????????# """ #??????????? | | ???????? ##?????????# """ #??????????? | | ???????" < ##?????????;^ """ +??????????? | | ???????! ##?????????# ????????????? | | ??????? ##?????????# ????????????? | | ??????""" ##?????????# """ ???????????? | | ??????### ###?????????## g= """ #??????????? | | ??????### # ??????????? !%[""" #??????????? | | ????????? + ???????????? ???????????????? | | ????????? # ???????????? ??????????????? | | ????????? # ???????????? ""??????????????? | | ?????????????????????????? "???????????????? | | ?????????????????????????? ????????????????? | | ?????????????????????????? ??????????????????? | | ??????????????????????????????????????????????? | | ??????????????????????????????????????????????? | | ??????????????????????????????????????????????? | | ??????????????????????????????????????????????? | | ??????????????????????????????????????????????? | | ??????????????????????????????????????????????? | | ??????????????????????????????????????????????? | | ??????????????????????????????????????????????? | | ??????????????????????????????????????????????? | +----------------------------------------------------+ Best States ------------- Heat Dissipation 25 Energy Generation 10 Energy Capacity 250 Matter Stores 300 Matter Capacity 300 Sight Range 16 Terrain Scan Density 10 Resistance: KI 20 Resistance: TH 20 Resistance: EX 20 Resistance: EM 20 Resistance: I 20 Resistance: S 20 Resistance: P 20 Utility Shielding 33 Evasion (%) 40 Offensive Hacking 10 Item Schematics ----------------- None Robot Schematics ------------------ None Fabricated ------------ Nothing Alien Tech Used ----------------- None Achievements -------------- None Challenges ------------ None Game ------ Seed DecoyCatalystSuite Manual? 0 Play Time 00:15:24 Cumulative 30.6 hours Start 2024.03.12 @ 17:36:15 End 2024.03.12 @ 17:48:17 Sessions 1 Manual Loads 0 Difficulty Adventurer Special Mode None Game No. 47 Rogue 10 Adventurer 37 Explorer 0 Win Type - Total 1 Types 1/0/0/0/0/0/0/0/0 Lore% 16 Gallery% 31 Achievement% 27 Wizard Run 0 Options --------- Layout 1 ASCII 0 Keyboard 0 Movement Arrows Keybinds 0 Fullscreen 2 Font 24/Smallcaps Map View 50x35 Zoom Use 0% Tactical HUD 0 Map Filters NONE Filters NONE Steam X RUN: 06441f39-1309-4b0b-b01d-743404798b5d